Cogmind - Beta 9.6 @@@ ROGUE MODE // 2020.05.30 @ 18:50:51 Player: Ben'n'Dan Result: Destroyed by as-94721 with Assembled Rifle Performance ------------- Evolutions (0) 0 Regions Visited (2) 400 Robots Destroyed (9) 45 Value Destroyed (167) 167 Prototype IDs (2) 40 Alien Tech Used (0) 0 Bonus (0) 0 TOTAL SCORE: 652 Bonus ------- None Cogmind --------- Core Integrity 0/250 Matter 300/300 Energy 246/250 System Corruption 3% Temperature Cool (10) Movement Flying (37) Location -10/Mines Parts ------- > --- POWER (1) -------- Ion Engine > --- PROPULSION (2) --- Flight Unit Flight Unit > --- UTILITY (2) ------ (None) > --- WEAPON (2) ------- (None) > --- INVENTORY (4) ---- Light Ion Engine Aluminum Leg Flight Unit EM Pulse Gun Peak State ------------ > --- POWER ------------ Ion Engine > --- PROPULSION ------- Aluminum Leg Aluminum Leg > --- UTILITY ---------- Small Storage Unit Compact Matter Pod > --- WEAPON ----------- Small Laser Light Cannon > --- INVENTORY -------- Light Ion Engine Flight Unit Flight Unit Flight Unit Flight Unit EM Pulse Gun [Rating: 9] Favorites ----------- Power Ion Engine Engine Ion Engine Propulsion Aluminum Leg Leg Aluminum Leg Flight Unit Flight Unit Utility Small Storage Unit Storage Small Storage Unit Weapon Light Assault Rifle Energy Gun Small Laser Ballistic Gun Light Assault Rifle Ballistic Cannon Light Cannon Build | -11 -10 -10 ------- Run | Scr Mat Min Slots Evolved . | . . . Power . | . . . Propulsion . | . . . Utility . | . . . Weapon . | . . . Parts Attached 13 | 6 1 6 Power 1 | 1 . . Engine 1 | 1 . . Core . | . . . Reactor . | . . . Propulsion 5 | 2 . 3 Treads . | . . . Leg 3 | 2 . 1 Wheel . | . . . Hover . | . . . Flight 2 | . . 2 Utility 2 | 1 . 1 Device . | . . . Storage 2 | 1 . 1 Processor . | . . . Hackware . | . . . Protection . | . . . Artifact . | . . . Weapon 5 | 2 1 2 Energy Gun 3 | 1 1 1 Energy Cannon . | . . . Ballistic Gun 1 | 1 . . Ballistic Cannon 1 | . . 1 Launcher . | . . . Special Weapon . | . . . Impact Weapon . | . . . Slashing Weapon . | . . . Piercing Weapon . | . . . Special Melee Weapon . | . . . Unidentified Prototypes . | . . . Parts Lost 3 | . . 3 Power . | . . . Propulsion . | . . . Utility 1 | . . 1 Weapon 2 | . . 2 Highest Loss Streak 2 | . . 2 Average Slot Usage (%) 84 | . 85 83 Engine 14 | . 14 14 Leg 25 | . 28 23 Flight 2 | . . 4 Storage 14 | . 14 15 Energy Gun 12 | . 14 11 Ballistic Gun 6 | . 14 3 Ballistic Cannon 7 | . . 10 Naked Turns . | . . . Heaviest Build 14 | 12 12 14 Greatest Support 20 | 20 20 20 Greatest Overweight (x) 2 | 2 . . Average Overweight (x) . | . . . Largest Inventory Capacity 6 | 6 6 6 Average Capacity 5 | 4 6 5 Most Carried 6 | 2 6 6 Average Carried 4 | 1 3 5 Final Capacity 6 | 6 6 4 Final Carried 6 | 2 6 4 Class Distribution -------------------- 100% | Mutant Dominant Class ---------------- Mutant | -10/Materials Mutant | -10/Mines Resources | -11 -10 -10 ----------- Run | Scr Mat Min Matter Collected 381 | 242 43 96 Remotely . | . . . Salvage Created 185 | . 99 86 Parts 17 | . 15 2 Haulers Intercepted . | . . . Recyclers Shooed . | . . . Parts Field Recycled . | . . . Retrieved Matter . | . . . Parts Self-Destructed . | . . . Prevented . | . . . Kills | -11 -10 -10 ------- Run | Scr Mat Min Combat Hostiles Destroyed 8 | . 6 2 Guns 8 | . 6 2 Classes Destroyed 3 | . 2 1 Watcher 1 | . 1 . Swarmer 6 | . 6 . Grunt 2 | . . 2 Best Kill Streak 5 | . 4 5 Combat Bots Only 4 | . 3 4 Max Kills in Single Turn 2 | . 2 1 Gunslinging 1 | . 1 . Exploded . | . . . Melee . | . . . Uniques/NPCs Destroyed . | . . . Combat | -11 -10 -10 -------- Run | Scr Mat Min Damage Taken 859 | . 142 717 Core 253 | . 17 236 Absorbed by Shields . | . . . Core Remaining (%) 100 | 100 . . Volleys Fired 33 | . 15 18 Largest 2 | . 2 2 Hottest 70 | . 70 70 Shots Fired 60 | . 30 30 Gun 54 | . 30 24 Cannon 6 | . . 6 Launcher . | . . . Special . | . . . Kinetic 33 | . 15 18 Thermal 26 | . 14 12 Explosive . | . . . Electromagnetic 1 | . 1 . Robot Hit Streak 6 | . 4 6 Robot Miss Streak 4 | . 4 1 Penetration Max . | . . . Secondary Targets 1 | . 1 . Max Gunslinging Chain 1 | . 1 . Shots Hit Robots 35 | . 14 21 Core Hits 16 | . 8 8 Critical Hits . | . . . Critical Kills . | . . . Critical Parts Destroyed . | . . . Melee Attacks . | . . . Impact . | . . . Slashing . | . . . Piercing . | . . . Sneak Attacks . | . . . Combat Hostiles . | . . . Follow-up Attacks . | . . . Damage Inflicted 420 | . 167 253 Guns 349 | . 167 182 Cannons 71 | . . 71 Explosions . | . . . Melee . | . . . Ramming . | . . . Kinetic 167 | . 39 128 Thermal 253 | . 128 125 Explosive . | . . . Electromagnetic . | . . . Impact . | . . . Slashing . | . . . Piercing . | . . . Highest Corruption 3 | . . 3 Average Corruption 2 | . . 2 Corruption Purged . | . . . Effects 2 | . . 2 Message Errors 1 | . . 1 Data Loss (minor) 1 | . . 1 Overload Shots . | . . . Overflow Damage . | . . . Projectiles . | . . . Explosions . | . . . Melee . | . . . Knockbacks . | . . . Impact . | . . . Kinetic . | . . . Secondary . | . . . Self-Inflicted Damage . | . . . Shots . | . . . Rammed . | . . . Targets Rammed . | . . . Kicked . | . . . Crushed . | . . . Highest Temperature 231 | . 150 231 Average Temperature 89 | . 65 113 Received Heat Transfer 139 | . . 139 Effects 1 | . . 1 Energy Bleed 1 | . . 1 Siege Activations . | . . . Robots Corrupted . | . . . Combat Hostiles . | . . . Parts Fried . | . . . Impact Corruptions . | . . . Robots Melted . | . . . Combat Hostiles . | . . . Parts Melted 2 | . 1 1 Heat Transferred 740 | . 370 370 Parts Sabotaged . | . . . Parts Stolen . | . . . Parts Stripped . | . . . Power Chain Reactions . | . . . Missiles Intercepted . | . . . Alert | -11 -10 -10 ------- Run | Scr Mat Min Peak Influence 184 | . 167 184 Average Influence 86 | . 58 117 Maximum Alert Level . | . . . Low Security (%) 100 | 100 100 100 Level 1 . | . . . Level 2 . | . . . Level 3 . | . . . Level 4 . | . . . Level 5 . | . . . High Security . | . . . Max Security . | . . . Squads Dispatched . | . . . Investigation . | . . . Extermination . | . . . Reinforcement . | . . . Assault . | . . . Garrison . | . . . Intercept . | . . . Construction Impeded . | . . . Haulers Reinforced . | . . . Stealth | -11 -10 -10 --------- Run | Scr Mat Min Distress Signals 1 | . 1 . Communications Jammed . | . . . Distress Signals . | . . . Times Spotted 31 | . 10 21 Peak Tracking Total 11 | . 4 11 Tactical Retreats 4 | . 1 3 Traps | -11 -10 -10 ------- Run | Scr Mat Min Traps Triggered . | . . . Indirectly . | . . . Trap Hack Attempts . | . . . Triggered . | . . . Disarmed . | . . . Reprogrammed . | . . . Reused . | . . . Traps Extracted . | . . . Installed . | . . . Triggered . | . . . Machines | -11 -10 -10 ---------- Run | Scr Mat Min Machines Disabled 1 | . . 1 Max in Single Turn 1 | . . 1 Machines Sabotaged . | . . . Garrisons Compromised . | . . . Overloaded Fab Kills . | . . . Fab Network Shutdowns . | . . . Hacking | -11 -10 -10 --------- Run | Scr Mat Min Machines Accessed 1 | . 1 . Terminals 1 | . 1 . Fabricators . | . . . Repair Stations . | . . . Recycling Units . | . . . Scanalyzers . | . . . Garrison Access . | . . . Total Hacks 2 | . 2 . Successful 1 | . 1 . Failed 1 | . 1 . Catastrophic . | . . . Database Lockouts . | . . . Manual . | . . . Terminals 2 | . 2 . Fabricators . | . . . Repair Stations . | . . . Recycling Units . | . . . Scanalyzers . | . . . Garrison Access . | . . . Terminal Hacks 1 | . 1 . Prototype ID Bank 1 | . 1 . Fabricator Hacks . | . . . Repair Station Hacks . | . . . Recycling Unit Hacks . | . . . Scanalyzer . | . . . Garrison Access Hacks . | . . . Unauthorized Hacks . | . . . Terminals . | . . . Fabricators . | . . . Repair Stations . | . . . Recycling Units . | . . . Scanalyzers . | . . . Garrison Access . | . . . Data Cores Recovered . | . . . Used . | . . . Hacking Detections 1 | . 1 . Full Trace Events . | . . . Feedback Events . | . . . Feedback Blocked . | . . . Robot Schematics Acquired . | . . . Robots Built . | . . . Matter . | . . . Time . | . . . Total Robot Build Rating . | . . . Part Schematics Acquired . | . . . Parts Built . | . . . Matter . | . . . Time . | . . . Total Part Build Rating . | . . . Parts Repaired . | . . . Time . | . . . Parts Recycled . | . . . Recycled Matter . | . . . Retrieved Matter . | . . . Retrieved Components . | . . . Parts Scanalyzed . | . . . Part Schematics Acquired . | . . . Parts Damaged . | . . . Bothacking | -11 -10 -10 ------------ Run | Scr Mat Min Used RIF Installer . | . . . Robots Hacked . | . . . Non-combat . | . . . Combat . | . . . Robot Hacks Applied . | . . . Relay Couplers Released . | . . . Robots Rewired . | . . . Allies Hacked . | . . . Hacks Repelled . | . . . Allies | -11 -10 -10 -------- Run | Scr Mat Min Total Allies . | . . . Largest Group . | . . . Highest-Rated Group . | . . . Highest-Rated Ally . | . . . Total Orders . | . . . Ally Attacks . | . . . Total Damage . | . . . Kills . | . . . Allies Corrupted . | . . . Allies Melted . | . . . Intel | -11 -10 -10 ------- Run | Scr Mat Min Robot Analysis Total . | . . . Derelict Logs Recovered 1 | . . 1 Drone Launches . | . . . Drone Recoveries . | . . . Exploration | -11 -10 -10 ------------- Run | Scr Mat Min Turns Passed 553 | 63 163 327 Spaces Moved 454 | 46 94 314 Core 11 | 11 . . Treads . | . . . Legs 314 | 35 94 185 Wheels . | . . . Hover . | . . . Flight 129 | . . 129 Fastest Speed 37 | 50 120 37 Average Speed 95 | 115 120 85 Slowest Speed 150 | 150 120 120 Overloaded Moves . | . . . Propulsion Burnouts . | . . . Robots Hopped 6 | . . 6 Cave-ins Triggered . | . . . Exploration Rate (%) 25 | 4 25 47 Regions Visited 2 Branch Regions 1 Pre-discovered Areas . | . . . Known Exits Taken . | . . . Unknown Exits Taken 2 | 1 1 . Scrap Searched 2 | . . 2 Spaces Dug . | . . . Terrain Destroyed . | . . . Melee . | . . . Projectile . | . . . AOE . | . . . Actions | -11 -10 -10 --------- Run | Scr Mat Min Total 508 | 53 117 338 Wait 2 | . 2 . Move 441 | 45 93 303 Hop 5 | . . 5 Pick Up 8 | 2 5 1 Fast Attach 8 | 6 . 2 Attach . | . . . Detach . | . . . Swap 5 | . 1 4 Drop 6 | . 1 5 Fire 33 | . 15 18 Melee . | . . . Ram . | . . . Kick . | . . . Crush . | . . . Escape Stasis . | . . . Rewire . | . . . Trap . | . . . Miscellaneous . | . . . Route ------- -11/Scrapyard -10/Materials -10/Mines History --------- Turn | Location | Event 9 | -11/Scrapyard | Discovered new exit (range 16) 64 | -11/Scrapyard | Entered Materials 211 | -10/Materials | Discovered new exit (range 11) 227 | -10/Materials | Entered Mines 293 | -10/Mines | Learned location of 2 exits from Materials 296 | -10/Mines | Assembled infested the area 302 | -10/Mines | Build established: Mutant 497 | -10/Mines | Core integrity fell below 50% 532 | -10/Mines | Core integrity fell below 20% 554 | -10/Mines | Destroyed by as-94721 with Assembled Rifle Last Messages --------------- 00395_ Found ECM Suite. 00397_ Dropped Flight Unit. 00398_ Acquired ECM Suite. 00455_ U-05 Engineer destroyed. 00463_ K-01 Serf collects debris. 00469_ Knocked back. 00477_ Com. Matter Pod destroyed. 00477_ System corrupted by crushing effect (+1). 00485_ Sml. Laser destroyed. 00485_ System corrupted by crushing effect (+2). 00490_ Knocked back. 00492_ Core Extractor disabled. 00495_ Knocked back. 00504_ XYC &%YZEZ1YL1JWXX2HN,A=, GU2LQ 1KUX7FH 00506_ Dropped Sml. Storage Unit. 00517_ Acquired 25 matter. 00524_ System corrupted: Component data lost. 00531_ Acquired 17 matter. 00533_ Acquired 2 matter. 00553_ Lgt. Cannon destroyed. Map ----- +----------------------------------------------------+ | ???????????????## #??# #?## = ###??????? | | ??????????????## #??# ### ""!! ##?????? | | ??????????????# #???# ## """ #?????? | | ??????????????# ##???### ## " " #?????? | | ??????????????##### #???## ### ##?????? | | ??????????????????# #???# ##### ###??????? | | ??????????????????# ##### #???######????????? | | ??????????????????# ! ##?????????????????? | | ??????????????????# ! ##??????????????????? | | ??????????????????######## %#???????????????????? | | ??????????????????####### #??###??????????????? | | ??????????????????# %! ##? ??????????????? | | ??????????????????# ###= ## ??????????????? | | ??????????????????????# # #??????????????? | | ??????????????????????## # #??????????????? | | ???????????????????????## # #??????????????? | | ????????????????????????## ## ##?????????????? | | ?????????????????????????### ### ##????????????? | | ???????????????????????????# ### #????????????? | | ??????????????????????????## #????????????? | | ?????????????????????????## a ##????????????? | | ???????????????## ???????# """ ##?????????????? | | ???????????????# ?????# """ #?????????###### | | ???????????????? """ [#### """ ##???????## | | ???????????????? """ ==%*%= #??????## | | ???????????????? """ *%[*@ a ##?????## | | ??????????????# ######=aa#####?????## | | ??????????????????????????### #???????### | | ????????????????????????????#=######### ## | | ????????????????????????????# ##### | | ????????????????????????????#[###### # """ ##??? | | ?????????????????????????####%###### ## """ #??? | | ?????????????????????????# * ## ### """ #??? | | ?????????????????????????# ## #?# ##??? | | ?????????????????????????# ## ### ###???? | | ?????????????????????????# """ ## ##?????? | | ?????????????????????????# """ #########??????? | | ?????????????????????????# """ #??????????????? | | ?????????????????????????##########??????????????? | | ?????????????????????????????????????????????????? | | | | | | | | | | | | | | | | | | | | | +----------------------------------------------------+ Best States ------------- Heat Dissipation 25 Energy Generation 10 Energy Capacity 250 Matter Stores 450 Matter Capacity 450 Sight Range 16 Terrain Scan Density 10 Evasion (%) 62 Item Schematics ----------------- None Robot Schematics ------------------ None Fabricated ------------ Nothing Alien Tech Used ----------------- None Achievements -------------- None Challenges ------------ None Game ------ Seed NodeOpticalScanner Manual? 0 Play Time 00:08:16 Cumulative 117.0 hours Start 2020.05.30 @ 18:45:12 End 2020.05.30 @ 18:50:51 Sessions 1 Manual Loads 0 Difficulty Rogue Special Mode None Game No. 257 Rogue 249 Adventurer 8 Explorer 0 Win Type - Total 6 Types 4/0/1/1/0/0/0 Lore% 76 Gallery% 77 Achievement% 58 Wizard Run 0 Options --------- ASCII 0 Keyboard 0 Movement Mouse Keybinds 0 Fullscreen 1 Font 12/Smallcaps Map View 83x54 Tactical HUD 1 Map Filters NONE Filters NONE Steam 1 RUN: fe6634f8-e25f-43e1-bb4a-6635c1bee52e